Workbook

Sheet Data
B1: Table2 | I1: Table1
B3: DDate | C3: Type | D3: State | E3: NName | F3: Code | I3: Code | J3: NName
B4: 2009-12-11 | C4: FUD | D4: AK | E4: Lewis | F4: =SUMIFS(Table1[Code],Table1[NName],Table2[NName]) -> 43 | I4: =rown^2+rown+41 -> 43 | J4: Lewis
B5: 2009-12-11 | C5: FUD | D5: SC | E5: Jones | F5: =SUMIFS(Table1[Code],Table1[NName],Table2[NName]) -> 47 | I5: =rown^2+rown+41 -> 47 | J5: Jones
B6: 2009-12-11 | C6: FUD | D6: UT | E6: Harris | F6: =SUMIFS(Table1[Code],Table1[NName],Table2[NName]) -> 53 | I6: =rown^2+rown+41 -> 53 | J6: Harris
B7: 2009-12-11 | C7: HEL | D7: AK | E7: Taylor | F7: =SUMIFS(Table1[Code],Table1[NName],Table2[NName]) -> 61 | I7: =rown^2+rown+41 -> 61 | J7: Taylor
B8: 2009-12-11 | C8: HEL | D8: AZ | E8: Martinez | F8: =SUMIFS(Table1[Code],Table1[NName],Table2[NName]) -> 71 | I8: =rown^2+rown+41 -> 71 | J8: Martinez
B9: 2009-12-11 | C9: HEL | D9: SC | E9: Lee | F9: =SUMIFS(Table1[Code],Table1[NName],Table2[NName]) -> 83 | I9: =rown^2+rown+41 -> 83 | J9: Lee
B10: 2009-12-11 | C10: LEM | D10: AZ | E10: Williams | F10: =SUMIFS(Table1[Code],Table1[NName],Table2[NName]) -> 97 | I10: =rown^2+rown+41 -> 97 | J10: Williams
B11: 2009-12-11 | C11: LEM | D11: UT | E11: Williams | F11: =SUMIFS(Table1[Code],Table1[NName],Table2[NName]) -> 97 | I11: =rown^2+rown+41 -> 113 | J11: Robinson
B12: 2009-12-11 | C12: NEB | D12: AK | E12: Robinson | F12: =SUMIFS(Table1[Code],Table1[NName],Table2[NName]) -> 113 | I12: =rown^2+rown+41 -> 131 | J12: Martin
B13: 2009-12-11 | C13: NEB | D13: AZ | E13: Williams | F13: =SUMIFS(Table1[Code],Table1[NName],Table2[NName]) -> 97 | I13: =rown^2+rown+41 -> 151 | J13: Johnson
B14: 2009-12-11 | C14: NEB | D14: SC | E14: Martin | F14: =SUMIFS(Table1[Code],Table1[NName],Table2[NName]) -> 131 | I14: =rown^2+rown+41 -> 173 | J14: Rodriguez
B15: 2009-12-12 | C15: FUD | D15: AK | E15: Johnson | F15: =SUMIFS(Table1[Code],Table1[NName],Table2[NName]) -> 151 | I15: =rown^2+rown+41 -> 197 | J15: Anderson
B16: 2009-12-12 | C16: FUD | D16: AZ | E16: Johnson | F16: =SUMIFS(Table1[Code],Table1[NName],Table2[NName]) -> 151 | I16: =rown^2+rown+41 -> 223 | J16: Scott
B17: 2009-12-12 | C17: FUD | D17: UT | E17: Rodriguez | F17: =SUMIFS(Table1[Code],Table1[NName],Table2[NName]) -> 173 | I17: =rown^2+rown+41 -> 251 | J17: White
B18: 2009-12-12 | C18: HEL | D18: AZ | E18: Johnson | F18: =SUMIFS(Table1[Code],Table1[NName],Table2[NName]) -> 151 | I18: =rown^2+rown+41 -> 281 | J18: Miller
B19: 2009-12-12 | C19: HEL | D19: SC | E19: Anderson | F19: =SUMIFS(Table1[Code],Table1[NName],Table2[NName]) -> 197 | I19: =rown^2+rown+41 -> 313 | J19: Smith
B20: 2009-12-12 | C20: LEM | D20: AK | E20: Robinson | F20: =SUMIFS(Table1[Code],Table1[NName],Table2[NName]) -> 113 | I20: =rown^2+rown+41 -> 347 | J20: Clark
B21: 2009-12-12 | C21: LEM | D21: AZ | E21: Williams | F21: =SUMIFS(Table1[Code],Table1[NName],Table2[NName]) -> 97 | I21: =rown^2+rown+41 -> 383 | J21: Jackson
B22: 2009-12-12 | C22: LEM | D22: SC | E22: Harris | F22: =SUMIFS(Table1[Code],Table1[NName],Table2[NName]) -> 53 | I22: =rown^2+rown+41 -> 421 | J22: Lopez
B23: 2009-12-12 | C23: LEM | D23: UT | E23: Lee | F23: =SUMIFS(Table1[Code],Table1[NName],Table2[NName]) -> 83 | I23: =rown^2+rown+41 -> 461 | J23: Wilson
B24: 2009-12-12 | C24: NEB | D24: AK | E24: Martinez | F24: =SUMIFS(Table1[Code],Table1[NName],Table2[NName]) -> 71 | I24: =rown^2+rown+41 -> 503 | J24: Garcia
B25: 2009-12-12 | C25: NEB | D25: SC | E25: Harris | F25: =SUMIFS(Table1[Code],Table1[NName],Table2[NName]) -> 53
B26: 2009-12-13 | C26: FUD | D26: AK | E26: Scott | F26: =SUMIFS(Table1[Code],Table1[NName],Table2[NName]) -> 223
B27: 2009-12-13 | C27: FUD | D27: SC | E27: White | F27: =SUMIFS(Table1[Code],Table1[NName],Table2[NName]) -> 251
B28: 2009-12-13 | C28: HEL | D28: AK | E28: Miller | F28: =SUMIFS(Table1[Code],Table1[NName],Table2[NName]) -> 281
B29: 2009-12-13 | C29: HEL | D29: AZ | E29: Martin | F29: =SUMIFS(Table1[Code],Table1[NName],Table2[NName]) -> 131
B30: 2009-12-13 | C30: HEL | D30: SC | E30: Smith | F30: =SUMIFS(Table1[Code],Table1[NName],Table2[NName]) -> 313
B31: 2009-12-13 | C31: HEL | D31: UT | E31: Clark | F31: =SUMIFS(Table1[Code],Table1[NName],Table2[NName]) -> 347
B32: 2009-12-13 | C32: LEM | D32: SC | E32: Smith | F32: =SUMIFS(Table1[Code],Table1[NName],Table2[NName]) -> 313
B33: 2009-12-13 | C33: NEB | D33: AK | E33: Johnson | F33: =SUMIFS(Table1[Code],Table1[NName],Table2[NName]) -> 151
B34: 2009-12-13 | C34: NEB | D34: AZ | E34: Jackson | F34: =SUMIFS(Table1[Code],Table1[NName],Table2[NName]) -> 383
B35: 2009-12-13 | C35: NEB | D35: SC | E35: Lewis | F35: =SUMIFS(Table1[Code],Table1[NName],Table2[NName]) -> 43
B36: 2009-12-13 | C36: NEB | D36: UT | E36: Miller | F36: =SUMIFS(Table1[Code],Table1[NName],Table2[NName]) -> 281
B37: 2009-12-14 | C37: FUD | D37: AK | E37: Lee | F37: =SUMIFS(Table1[Code],Table1[NName],Table2[NName]) -> 83
B38: 2009-12-14 | C38: FUD | D38: AZ | E38: Robinson | F38: =SUMIFS(Table1[Code],Table1[NName],Table2[NName]) -> 113
B39: 2009-12-14 | C39: FUD | D39: SC | E39: Lopez | F39: =SUMIFS(Table1[Code],Table1[NName],Table2[NName]) -> 421
B40: 2009-12-14 | C40: HEL | D40: AK | E40: White | F40: =SUMIFS(Table1[Code],Table1[NName],Table2[NName]) -> 251
B41: 2009-12-14 | C41: HEL | D41: AZ | E41: Jackson | F41: =SUMIFS(Table1[Code],Table1[NName],Table2[NName]) -> 383
B42: 2009-12-14 | C42: HEL | D42: SC | E42: Rodriguez | F42: =SUMIFS(Table1[Code],Table1[NName],Table2[NName]) -> 173
B43: 2009-12-14 | C43: LEM | D43: AK | E43: Williams | F43: =SUMIFS(Table1[Code],Table1[NName],Table2[NName]) -> 97
B44: 2009-12-14 | C44: LEM | D44: AZ | E44: Smith | F44: =SUMIFS(Table1[Code],Table1[NName],Table2[NName]) -> 313
B45: 2009-12-14 | C45: LEM | D45: SC | E45: Wilson | F45: =SUMIFS(Table1[Code],Table1[NName],Table2[NName]) -> 461
B46: 2009-12-14 | C46: LEM | D46: UT | E46: Jackson | F46: =SUMIFS(Table1[Code],Table1[NName],Table2[NName]) -> 383
B47: 2009-12-14 | C47: NEB | D47: AK | E47: Taylor | F47: =SUMIFS(Table1[Code],Table1[NName],Table2[NName]) -> 61
B48: 2009-12-14 | C48: NEB | D48: SC | E48: White | F48: =SUMIFS(Table1[Code],Table1[NName],Table2[NName]) -> 251
B49: 2009-12-14 | C49: NEB | D49: UT | E49: Garcia | F49: =SUMIFS(Table1[Code],Table1[NName],Table2[NName]) -> 503

Sheet PT
B3: 'Code | D3: State
B4: DDate | C4: Type | D4: UT | E4: SC | F4: AK | G4: AZ
B5: 2009-12-11
C6: NEB | E6: 131 | F6: 113 | G6: 97
C7: FUD | D7: 53 | E7: 47 | F7: 43
C8: LEM | D8: 97 | G8: 97
C9: HEL | E9: 83 | F9: 61 | G9: 71
B10: 2009-12-12
C11: NEB | E11: 53 | F11: 71
C12: FUD | D12: 173 | F12: 151 | G12: 151
C13: LEM | D13: 83 | E13: 53 | F13: 113 | G13: 97
C14: HEL | E14: 197 | G14: 151
B15: 2009-12-13
C16: NEB | D16: 281 | E16: 43 | F16: 151 | G16: 383
C17: FUD | E17: 251 | F17: 223
C18: LEM | E18: 313
C19: HEL | D19: 347 | E19: 313 | F19: 281 | G19: 131
B20: 2009-12-14
C21: NEB | D21: 503 | E21: 251 | F21: 61
C22: FUD | E22: 421 | F22: 83 | G22: 113
C23: LEM | D23: 383 | E23: 461 | F23: 97 | G23: 313
C24: HEL | E24: 173 | F24: 251 | G24: 383
